[Event "Live Chess"]
[Site "Chess.com"]
[Date "2023.05.21"]
[Round "-"]
[White "domrobson"]
[Black "CheckThis4"]
[Result "0-1"]
[WhiteElo "1784"]
[BlackElo "2546"]
[TimeControl "300"]
[EndTime "17:00:49 PDT"]
[Termination "CheckThis4 won by checkmate"]

1. d4 {[%clk 0:04:56.8]} 1... Nf6 {[%clk 0:04:58.8]} 2. c4 {[%clk 0:04:53.3]}
2... e5 {[%clk 0:04:57.4]} 3. dxe5 {[%clk 0:04:52.2]} 3... Ng4 {[%clk
0:04:56.5]} 4. Bf4 {[%clk 0:04:51.5]} 4... Bb4+ {[%clk 0:04:54.9]} 5. Nd2 {[%clk
0:04:50.2]} 5... d6 {[%clk 0:04:54.4]} 6. exd6 {[%clk 0:04:44.8]} 6... Qf6
{[%clk 0:04:50.7]} 7. e3 {[%clk 0:04:41.8]} 7... g5 {[%clk 0:04:40.8]} 8. Bg3
{[%clk 0:04:29.6]} 8... h5 {[%clk 0:04:36.5]} 9. Qa4+ {[%clk 0:04:22.2]} 9...
Nc6 {[%clk 0:04:34.4]} 10. h3 {[%clk 0:04:08.3]} 10... Bxd2+ {[%clk 0:04:21.4]}
11. Kxd2 {[%clk 0:04:07.3]} 11... Qxb2+ {[%clk 0:04:20]} 12. Qc2 {[%clk
0:04:02.4]} 12... Qxa1 {[%clk 0:04:16.9]} 13. hxg4 {[%clk 0:04:01.7]} 13... Bxg4
{[%clk 0:04:11.8]} 14. f3 {[%clk 0:03:51.2]} 14... Be6 {[%clk 0:04:05.4]} 15.
Be2 {[%clk 0:03:41.5]} 15... O-O-O {[%clk 0:04:02.1]} 16. c5 {[%clk 0:03:36.7]}
16... cxd6 {[%clk 0:03:54.3]} 17. cxd6 {[%clk 0:03:33.5]} 17... Qxa2 {[%clk
0:03:52.4]} 18. Qxa2 {[%clk 0:03:18.3]} 18... Bxa2 {[%clk 0:03:52.3]} 19. Bb5
{[%clk 0:03:16.2]} 19... h4 {[%clk 0:03:50.4]} 20. Bh2 {[%clk 0:03:11.8]} 20...
Rh6 {[%clk 0:03:37.9]} 21. Ne2 {[%clk 0:03:08.9]} 21... Rhxd6+ {[%clk
0:03:36.1]} 22. Bxd6 {[%clk 0:03:07.8]} 22... Rxd6+ {[%clk 0:03:36]} 23. Kc2
{[%clk 0:03:06.8]} 23... Nb4+ {[%clk 0:03:31.3]} 24. Kb2 {[%clk 0:03:02.3]}
24... a5 {[%clk 0:03:25.4]} 25. Rc1+ {[%clk 0:03:00.5]} 25... Kb8 {[%clk
0:03:23.5]} 26. Nd4 {[%clk 0:02:56.3]} 26... Rb6 {[%clk 0:03:15.8]} 27. Ka3
{[%clk 0:02:52.7]} 27... Bd5 {[%clk 0:03:06.1]} 28. Bd7 {[%clk 0:02:46]} 28...
Nc6 {[%clk 0:02:57.3]} 29. Bxc6 {[%clk 0:02:36.4]} 29... Bxc6 {[%clk 0:02:48.6]}
30. Nxc6+ {[%clk 0:02:31.4]} 30... Rxc6 {[%clk 0:02:46]} 31. Rd1 {[%clk
0:02:24.2]} 31... Rc3+ {[%clk 0:02:43.9]} 32. Ka4 {[%clk 0:02:23.3]} 32... Rxe3
{[%clk 0:02:42.8]} 33. Kxa5 {[%clk 0:02:22.4]} 33... Re2 {[%clk 0:02:39.7]} 34.
Kb6 {[%clk 0:02:19.6]} 34... Rb2+ {[%clk 0:02:38]} 35. Kc5 {[%clk 0:02:18.6]}
35... Rxg2 {[%clk 0:02:35.8]} 36. Kd6 {[%clk 0:02:18]} 36... h3 {[%clk
0:02:31.7]} 37. Ke7 {[%clk 0:02:16.5]} 37... h2 {[%clk 0:02:28.9]} 38. Rh1
{[%clk 0:02:15.8]} 38... f5 {[%clk 0:02:25.9]} 39. Kf6 {[%clk 0:02:13.7]} 39...
g4 {[%clk 0:02:25.2]} 40. Kxf5 {[%clk 0:02:09.2]} 40... g3 {[%clk 0:02:24.4]}
41. Kg4 {[%clk 0:02:06]} 41... Rg1 {[%clk 0:02:23.1]} 42. f4 {[%clk 0:02:02.7]}
42... Rxh1 {[%clk 0:02:19.8]} 43. f5 {[%clk 0:02:02.6]} 43... g2 {[%clk
0:02:17.7]} 44. f6 {[%clk 0:02:02.5]} 44... g1=Q+ {[%clk 0:02:17.1]} 45. Kh5
{[%clk 0:02:00.1]} 45... Qc5+ {[%clk 0:02:14.8]} 46. Kh6 {[%clk 0:01:59]} 46...
Qf8+ {[%clk 0:02:13.6]} 47. Kg6 {[%clk 0:01:58]} 47... Rg1+ {[%clk 0:02:12.3]}
48. Kh7 {[%clk 0:01:56.4]} 48... h1=Q# {[%clk 0:02:10.6]} 0-1

[Event "Live Chess"]
[Site "Chess.com"]
[Date "2023.05.21"]
[Round "-"]
[White "chessfiction"]
[Black "nigelst"]
[Result "1-0"]
[WhiteElo "2333"]
[BlackElo "1785"]
[TimeControl "300"]
[EndTime "17:00:59 PDT"]
[Termination "chessfiction won by resignation"]

1. e4 {[%clk 0:04:59.4]} 1... c6 {[%clk 0:04:58.7]} 2. d4 {[%clk 0:04:59.3]}
2... d5 {[%clk 0:04:57.6]} 3. Nc3 {[%clk 0:04:59]} 3... dxe4 {[%clk 0:04:55.3]}
4. f3 {[%clk 0:04:58.9]} 4... e5 {[%clk 0:04:53]} 5. d5 {[%clk 0:04:57.9]} 5...
Nf6 {[%clk 0:04:48.7]} 6. fxe4 {[%clk 0:04:56]} 6... Bb4 {[%clk 0:04:40.3]} 7.
Nf3 {[%clk 0:04:51.7]} 7... Bxc3+ {[%clk 0:04:38.1]} 8. bxc3 {[%clk 0:04:51.6]}
8... cxd5 {[%clk 0:04:37]} 9. exd5 {[%clk 0:04:51.3]} 9... Qxd5 {[%clk 0:04:34]}
10. Qxd5 {[%clk 0:04:49.4]} 10... Nxd5 {[%clk 0:04:32.6]} 11. Nxe5 {[%clk
0:04:49.3]} 11... Nxc3 {[%clk 0:04:29.6]} 12. Ba3 {[%clk 0:04:46.1]} 12... Be6
{[%clk 0:04:17.8]} 13. Bd3 {[%clk 0:04:37.2]} 13... Nc6 {[%clk 0:04:15.5]} 14.
Nxc6 {[%clk 0:04:33.8]} 14... bxc6 {[%clk 0:04:13.6]} 15. O-O {[%clk 0:04:32.7]}
15... O-O-O {[%clk 0:04:09.6]} 16. Bc5 {[%clk 0:04:24.6]} 16... a6 {[%clk
0:04:01.6]} 17. Bxa6+ {[%clk 0:04:21.8]} 17... Kc7 {[%clk 0:03:58.8]} 18. Rf3
{[%clk 0:04:17.6]} 18... Nd5 {[%clk 0:03:47.1]} 19. c4 {[%clk 0:04:11.3]} 19...
Nf6 {[%clk 0:03:41]} 20. Bf2 {[%clk 0:04:06.5]} 20... Rd2 {[%clk 0:03:33.3]} 21.
Bg3+ {[%clk 0:04:05.1]} 21... Kb6 {[%clk 0:03:29.2]} 22. Ra3 {[%clk 0:03:59.5]}
22... Rhd8 {[%clk 0:03:22]} 23. Rb1+ {[%clk 0:03:55.9]} 23... Kc5 {[%clk
0:03:16.2]} 24. Ra5+ {[%clk 0:03:53.8]} 24... Kd4 {[%clk 0:03:14.2]} 25. Be5+
{[%clk 0:03:50.9]} 25... Ke4 {[%clk 0:02:58.4]} 26. Re1+ {[%clk 0:03:49.1]}
26... Kd3 {[%clk 0:02:51.2]} 27. c5+ {[%clk 0:03:45.2]} 27... Kc2 {[%clk
0:02:50]} 28. Ra3 {[%clk 0:03:32.1]} 28... Rd1 {[%clk 0:02:28.7]} 29. Rc3+
{[%clk 0:03:30.9]} 29... Kb1 {[%clk 0:02:16.2]} 30. Bd3+ {[%clk 0:03:29.3]}
30... Kxa2 {[%clk 0:02:09.8]} 31. Rxd1 {[%clk 0:03:27.8]} 31... Ne4 {[%clk
0:01:59.2]} 32. Bb1+ {[%clk 0:03:21.2]} 32... Kb2 {[%clk 0:01:55.7]} 33. Rxd8
{[%clk 0:03:21.1]} 33... Nxc3 {[%clk 0:01:50.4]} 34. Rb8+ {[%clk 0:03:18.5]}
34... Kc1 {[%clk 0:01:46.9]} 35. Bxc3 {[%clk 0:03:16.8]} 1-0

[Event "Live Chess"]
[Site "Chess.com"]
[Date "2023.05.21"]
[Round "-"]
[White "Missedidea"]
[Black "raminguy"]
[Result "1-0"]
[WhiteElo "1859"]
[BlackElo "1961"]
[TimeControl "300"]
[EndTime "17:01:09 PDT"]
[Termination "Missedidea won by resignation"]

1. d4 {[%clk 0:04:59]} 1... d5 {[%clk 0:04:59.1]} 2. c4 {[%clk 0:04:57.4]} 2...
e6 {[%clk 0:04:58]} 3. Nc3 {[%clk 0:04:55.6]} 3... a6 {[%clk 0:04:57.2]} 4. Nf3
{[%clk 0:04:49.6]} 4... dxc4 {[%clk 0:04:54.9]} 5. e4 {[%clk 0:04:48.4]} 5... b5
{[%clk 0:04:54.1]} 6. Be2 {[%clk 0:04:44.1]} 6... Bb7 {[%clk 0:04:52.2]} 7. a3
{[%clk 0:04:37.4]} 7... Nf6 {[%clk 0:04:50.9]} 8. Qc2 {[%clk 0:04:33.9]} 8...
Be7 {[%clk 0:04:48]} 9. O-O {[%clk 0:04:31.8]} 9... O-O {[%clk 0:04:47]} 10. Rd1
{[%clk 0:04:23.9]} 10... Qc8 {[%clk 0:04:39.8]} 11. h3 {[%clk 0:04:20.8]} 11...
Rd8 {[%clk 0:04:37.6]} 12. d5 {[%clk 0:04:08.9]} 12... exd5 {[%clk 0:04:35.8]}
13. exd5 {[%clk 0:04:07.1]} 13... Nxd5 {[%clk 0:04:31.3]} 14. Ng5 {[%clk
0:03:59]} 14... g6 {[%clk 0:04:17.9]} 15. Bf3 {[%clk 0:03:46.4]} 15... Nxc3
{[%clk 0:04:12.8]} 16. Rxd8+ {[%clk 0:03:35.3]} 16... Bxd8 {[%clk 0:04:10.8]}
17. Qxc3 {[%clk 0:03:20.8]} 17... Bxf3 {[%clk 0:04:03.2]} 18. Qxf3 {[%clk
0:03:15.7]} 18... Bxg5 {[%clk 0:03:04.1]} 19. Qxa8 {[%clk 0:03:13.4]} 19... Bxc1
{[%clk 0:03:02.6]} 20. Rxc1 {[%clk 0:03:11.3]} 20... Kg7 {[%clk 0:02:48.2]} 21.
Rd1 {[%clk 0:02:59.3]} 21... Qe8 {[%clk 0:02:30.1]} 22. Qa7 {[%clk 0:02:34]}
22... Qe2 {[%clk 0:02:15.7]} 23. Qd4+ {[%clk 0:02:18.5]} 23... Kh6 {[%clk
0:02:09.6]} 24. Rd2 {[%clk 0:02:07.9]} 24... Qe1+ {[%clk 0:02:08.2]} 25. Kh2
{[%clk 0:02:06.2]} 25... Nc6 {[%clk 0:02:07.9]} 26. Qf4+ {[%clk 0:01:59.8]}
26... Kg7 {[%clk 0:01:59.2]} 27. Rd7 {[%clk 0:01:45.7]} 27... Ne5 {[%clk
0:01:45.1]} 28. Rxc7 {[%clk 0:01:38.8]} 28... h6 {[%clk 0:01:37.9]} 29. Ra7
{[%clk 0:01:30.2]} 29... g5 {[%clk 0:01:15.1]} 30. Qd4 {[%clk 0:01:24.7]} 30...
Kh7 {[%clk 0:00:48.5]} 31. Rxa6 {[%clk 0:01:18.5]} 31... Nd3 {[%clk 0:00:32.6]}
32. Rf6 {[%clk 0:01:04.7]} 32... Qe5+ {[%clk 0:00:21.4]} 33. Qxe5 {[%clk
0:01:01]} 33... Nxe5 {[%clk 0:00:21.3]} 34. Rb6 {[%clk 0:00:56.9]} 34... Nd3
{[%clk 0:00:19]} 35. Rxb5 {[%clk 0:00:55.1]} 35... Nxb2 {[%clk 0:00:18.5]} 36.
Rxb2 {[%clk 0:00:52.8]} 1-0

[Event "Live Chess"]
[Site "Chess.com"]
[Date "2023.05.21"]
[Round "-"]
[White "Shepherds_Pie"]
[Black "therealab0ne"]
[Result "1-0"]
[WhiteElo "1912"]
[BlackElo "708"]
[TimeControl "300"]
[EndTime "17:01:30 PDT"]
[Termination "Shepherds_Pie won by resignation"]

1. c4 {[%clk 0:04:58.4]} 1... e5 {[%clk 0:04:58.3]} 2. Nc3 {[%clk 0:04:56.3]}
2... Nc6 {[%clk 0:04:51.3]} 3. Nf3 {[%clk 0:04:54.8]} 3... Bb4 {[%clk
0:04:41.1]} 4. Qc2 {[%clk 0:04:52.1]} 4... Bxc3 {[%clk 0:04:28.1]} 5. Qxc3
{[%clk 0:04:50.8]} 5... Nf6 {[%clk 0:04:20.2]} 6. Nxe5 {[%clk 0:04:49.2]} 6...
O-O {[%clk 0:04:15.6]} 7. d4 {[%clk 0:04:46.8]} 7... Nxe5 {[%clk 0:04:11.9]} 8.
dxe5 {[%clk 0:04:45.7]} 8... Ng4 {[%clk 0:03:35.2]} 9. h3 {[%clk 0:04:43.4]}
9... Nxe5 {[%clk 0:03:28.8]} 10. Qxe5 {[%clk 0:04:41.7]} 10... Re8 {[%clk
0:03:28.2]} 11. Qd4 {[%clk 0:04:40.1]} 11... d6 {[%clk 0:03:19.7]} 12. e3 {[%clk
0:04:38.8]} 12... c5 {[%clk 0:03:18.7]} 13. Qc3 {[%clk 0:04:35.4]} 13... Qg5
{[%clk 0:02:51.8]} 14. g3 {[%clk 0:04:28.5]} 14... Bd7 {[%clk 0:01:59.8]} 15.
Bg2 {[%clk 0:04:25.9]} 15... Re6 {[%clk 0:01:45.3]} 16. h4 {[%clk 0:04:24]}
16... Qe5 {[%clk 0:01:38.1]} 17. Qxe5 {[%clk 0:04:20.3]} 17... Rxe5 {[%clk
0:01:37.3]} 18. Bxb7 {[%clk 0:04:17]} 18... Rae8 {[%clk 0:01:34.7]} 19. Bf3
{[%clk 0:04:14.8]} 19... d5 {[%clk 0:01:25]} 20. cxd5 {[%clk 0:04:13.3]} 20...
Rxd5 {[%clk 0:01:16.7]} 21. Bxd5 {[%clk 0:04:11.3]} 1-0

[Event "Live Chess"]
[Site "Chess.com"]
[Date "2023.05.21"]
[Round "-"]
[White "Conradical12"]
[Black "Singapourfeuj"]
[Result "0-1"]
[WhiteElo "1597"]
[BlackElo "2195"]
[TimeControl "300"]
[EndTime "17:01:30 PDT"]
[Termination "Singapourfeuj won by checkmate"]

1. e4 {[%clk 0:04:58.2]} 1... e6 {[%clk 0:04:58.3]} 2. f4 {[%clk 0:04:56.6]}
2... d5 {[%clk 0:04:57.1]} 3. exd5 {[%clk 0:04:55.1]} 3... exd5 {[%clk
0:04:55.6]} 4. Nf3 {[%clk 0:04:55]} 4... Bd6 {[%clk 0:04:54.3]} 5. d3 {[%clk
0:04:52.6]} 5... Ne7 {[%clk 0:04:53.5]} 6. Nc3 {[%clk 0:04:51]} 6... Nbc6 {[%clk
0:04:52.6]} 7. Bd2 {[%clk 0:04:50.1]} 7... Bg4 {[%clk 0:04:51.3]} 8. Be2 {[%clk
0:04:49.3]} 8... Qd7 {[%clk 0:04:50.4]} 9. O-O {[%clk 0:04:48.8]} 9... O-O-O
{[%clk 0:04:49.4]} 10. a4 {[%clk 0:04:47.1]} 10... Kb8 {[%clk 0:04:48.1]} 11. a5
{[%clk 0:04:45.7]} 11... d4 {[%clk 0:04:46.9]} 12. Nb5 {[%clk 0:04:43.5]} 12...
a6 {[%clk 0:04:45.5]} 13. Nbxd4 {[%clk 0:04:42.3]} 13... Bc5 {[%clk 0:04:44.1]}
14. Be3 {[%clk 0:04:38.7]} 14... Bxf3 {[%clk 0:04:40.5]} 15. Nxc6+ {[%clk
0:04:36.7]} 15... Qxc6 {[%clk 0:04:37.6]} 16. Bxc5 {[%clk 0:04:29.2]} 16...
Qxc5+ {[%clk 0:04:35.3]} 17. Kh1 {[%clk 0:04:28.7]} 17... Bxe2 {[%clk
0:04:33.6]} 18. Qxe2 {[%clk 0:04:27.8]} 18... Rhe8 {[%clk 0:04:32]} 19. Qf3
{[%clk 0:04:26.2]} 19... Nf5 {[%clk 0:04:30.4]} 20. Ra3 {[%clk 0:04:25.4]} 20...
Re6 {[%clk 0:04:26.4]} 21. Rb3 {[%clk 0:04:24.7]} 21... Qc6 {[%clk 0:04:25]} 22.
Qd1 {[%clk 0:04:19.9]} 22... Qc5 {[%clk 0:04:19.3]} 23. g4 {[%clk 0:04:16.3]}
23... Nd4 {[%clk 0:04:17]} 24. Rc3 {[%clk 0:04:13]} 24... Qxa5 {[%clk
0:04:14.3]} 25. Qd2 {[%clk 0:04:08]} 25... Qd5+ {[%clk 0:04:12.8]} 26. Kg1
{[%clk 0:04:06.2]} 26... Re2 {[%clk 0:04:08.8]} 27. Qd1 {[%clk 0:04:00.3]} 27...
Qg2# {[%clk 0:04:07.4]} 0-1

[Event "Live Chess"]
[Site "Chess.com"]
[Date "2023.05.21"]
[Round "-"]
[White "Hussamalhaidar"]
[Black "CeladonFish"]
[Result "1-0"]
[WhiteElo "1055"]
[BlackElo "1110"]
[TimeControl "300"]
[EndTime "17:01:38 PDT"]
[Termination "Hussamalhaidar won by checkmate"]

1. b3 {[%clk 0:04:58.2]} 1... Nf6 {[%clk 0:04:58.9]} 2. Bb2 {[%clk 0:04:57.6]}
2... d5 {[%clk 0:04:58.5]} 3. e3 {[%clk 0:04:54.9]} 3... g6 {[%clk 0:04:58]} 4.
f4 {[%clk 0:04:45.7]} 4... Bg7 {[%clk 0:04:57.1]} 5. Nf3 {[%clk 0:04:44.4]} 5...
O-O {[%clk 0:04:54.7]} 6. d3 {[%clk 0:04:36.7]} 6... Nc6 {[%clk 0:04:51.7]} 7.
Nbd2 {[%clk 0:04:34.5]} 7... Bg4 {[%clk 0:04:50.7]} 8. Be2 {[%clk 0:04:31.8]}
8... Re8 {[%clk 0:04:49.8]} 9. O-O {[%clk 0:04:29.9]} 9... Bxf3 {[%clk
0:04:49.1]} 10. Rxf3 {[%clk 0:04:24]} 10... e5 {[%clk 0:04:48.4]} 11. Rh3 {[%clk
0:03:56.9]} 11... exf4 {[%clk 0:04:39.7]} 12. exf4 {[%clk 0:03:44.6]} 12... Ng4
{[%clk 0:04:22.7]} 13. Bxg7 {[%clk 0:03:29.4]} 13... Kxg7 {[%clk 0:04:21.7]} 14.
Bxg4 {[%clk 0:03:26.3]} 14... h5 {[%clk 0:04:17.5]} 15. Bxh5 {[%clk 0:03:21.4]}
15... gxh5 {[%clk 0:04:16.4]} 16. Qxh5 {[%clk 0:03:18.7]} 16... Rh8 {[%clk
0:04:09.3]} 17. Rg3+ {[%clk 0:02:59.3]} 17... Kf6 {[%clk 0:04:06]} 18. Qg5+
{[%clk 0:02:51.9]} 18... Ke6 {[%clk 0:04:05.2]} 19. Re1+ {[%clk 0:02:42.6]}
19... Kd6 {[%clk 0:04:01]} 20. c4 {[%clk 0:02:21.5]} 20... Qxg5 {[%clk
0:03:56.7]} 21. Rxg5 {[%clk 0:02:16.6]} 21... dxc4 {[%clk 0:03:55.3]} 22. Nxc4+
{[%clk 0:02:13.7]} 22... Kd7 {[%clk 0:03:45.7]} 23. Rg7 {[%clk 0:02:04.2]} 23...
Rhf8 {[%clk 0:03:39.7]} 24. Ne5+ {[%clk 0:01:59.4]} 24... Nxe5 {[%clk
0:03:38.1]} 25. fxe5 {[%clk 0:01:50.7]} 25... Rae8 {[%clk 0:03:35.9]} 26. d4
{[%clk 0:01:42.3]} 26... Kc6 {[%clk 0:03:34.6]} 27. Rc1+ {[%clk 0:01:33.8]}
27... Kb6 {[%clk 0:03:32]} 28. a4 {[%clk 0:01:25.3]} 28... f6 {[%clk 0:03:30.4]}
29. Rcxc7 {[%clk 0:01:18]} 29... fxe5 {[%clk 0:03:26.8]} 30. Rxb7+ {[%clk
0:01:12.6]} 30... Kc6 {[%clk 0:03:25.7]} 31. Rgc7+ {[%clk 0:01:08.2]} 31... Kd5
{[%clk 0:03:22.5]} 32. Rd7+ {[%clk 0:01:00]} 32... Ke4 {[%clk 0:03:21.5]} 33.
dxe5 {[%clk 0:00:56]} 33... Rxe5 {[%clk 0:03:20.1]} 34. Rb4+ {[%clk 0:00:53]}
34... Kf5 {[%clk 0:03:16]} 35. g4+ {[%clk 0:00:49.3]} 35... Kg5 {[%clk 0:03:13]}
36. Rg7+ {[%clk 0:00:41.5]} 36... Kf6 {[%clk 0:03:05.6]} 37. Rxa7 {[%clk
0:00:37.6]} 37... Rg5 {[%clk 0:02:56.9]} 38. Rf4+ {[%clk 0:00:31.6]} 38... Ke5
{[%clk 0:02:45.2]} 39. Rxf8 {[%clk 0:00:26.4]} 39... Rxg4+ {[%clk 0:02:44.7]}
40. Kf1 {[%clk 0:00:20.7]} 40... Rf4+ {[%clk 0:02:43.1]} 41. Rxf4 {[%clk
0:00:18.9]} 41... Kxf4 {[%clk 0:02:42.3]} 42. Kf2 {[%clk 0:00:17.9]} 42... Ke4
{[%clk 0:02:41.3]} 43. h4 {[%clk 0:00:16.9]} 43... Kf5 {[%clk 0:02:40.3]} 44. h5
{[%clk 0:00:16]} 44... Kg5 {[%clk 0:02:39.7]} 45. Ra5+ {[%clk 0:00:14.4]} 45...
Kh6 {[%clk 0:02:38.4]} 46. Kg3 {[%clk 0:00:12.6]} 46... Kh7 {[%clk 0:02:35.5]}
47. Kg4 {[%clk 0:00:11.6]} 47... Kh6 {[%clk 0:02:34.6]} 48. Ra6+ {[%clk
0:00:10.5]} 48... Kh7 {[%clk 0:02:33.7]} 49. Rf6 {[%clk 0:00:09.3]} 49... Kg7
{[%clk 0:02:33.5]} 50. Kg5 {[%clk 0:00:08.2]} 50... Kg8 {[%clk 0:02:31.7]} 51.
h6 {[%clk 0:00:07.3]} 51... Kh7 {[%clk 0:02:31.2]} 52. Rf7+ {[%clk 0:00:05.6]}
52... Kh8 {[%clk 0:02:30.5]} 53. Kg6 {[%clk 0:00:03.9]} 53... Kg8 {[%clk
0:02:27.3]} 54. h7+ {[%clk 0:00:03.1]} 54... Kh8 {[%clk 0:02:26.4]} 55. Rf8#
{[%clk 0:00:02.2]} 1-0

[Event "Live Chess"]
[Site "Chess.com"]
[Date "2023.05.21"]
[Round "-"]
[White "GEMdzq"]
[Black "DaveL5678"]
[Result "1-0"]
[WhiteElo "2234"]
[BlackElo "1009"]
[TimeControl "300"]
[EndTime "17:01:54 PDT"]
[Termination "GEMdzq won by checkmate"]

1. e4 {[%clk 0:04:56.8]} 1... e6 {[%clk 0:04:57.5]} 2. d4 {[%clk 0:04:55.1]}
2... d5 {[%clk 0:04:57]} 3. Nc3 {[%clk 0:04:53.4]} 3... c5 {[%clk 0:04:54.1]} 4.
Nf3 {[%clk 0:04:39.9]} 4... Qb6 {[%clk 0:04:50.7]} 5. exd5 {[%clk 0:04:37.6]}
5... cxd4 {[%clk 0:04:39.4]} 6. Nxd4 {[%clk 0:04:28.3]} 6... Bc5 {[%clk
0:04:26.9]} 7. Na4 {[%clk 0:04:20.9]} 7... Qb4+ {[%clk 0:04:12.8]} 8. c3 {[%clk
0:04:19.7]} 8... Qa5 {[%clk 0:03:52.2]} 9. Bb5+ {[%clk 0:04:09.6]} 9... Bd7
{[%clk 0:03:46.2]} 10. Bxd7+ {[%clk 0:04:07.5]} 10... Nxd7 {[%clk 0:03:43.9]}
11. dxe6 {[%clk 0:04:03.1]} 11... fxe6 {[%clk 0:03:13]} 12. b4 {[%clk
0:04:00.6]} 12... Qc7 {[%clk 0:02:52.7]} 13. bxc5 {[%clk 0:03:56.9]} 13... Qe5+
{[%clk 0:02:45.1]} 14. Be3 {[%clk 0:03:55]} 14... Nxc5 {[%clk 0:02:34.7]} 15.
Nxc5 {[%clk 0:03:53.5]} 15... Qxc5 {[%clk 0:02:33.7]} 16. O-O {[%clk 0:03:52.3]}
16... Qe5 {[%clk 0:02:25.7]} 17. Re1 {[%clk 0:03:50.4]} 17... Qf6 {[%clk
0:02:20.3]} 18. Nxe6 {[%clk 0:03:48.1]} 18... Rc8 {[%clk 0:02:03.4]} 19. Bd4
{[%clk 0:03:45.3]} 19... Qf7 {[%clk 0:01:38.8]} 20. Qa4+ {[%clk 0:03:36.8]}
20... Rc6 {[%clk 0:01:24.8]} 21. Nxg7+ {[%clk 0:03:33]} 21... Kd7 {[%clk
0:00:59]} 22. Rad1 {[%clk 0:03:29.2]} 22... Kc7 {[%clk 0:00:42.3]} 23. Ne8+
{[%clk 0:03:17.8]} 23... Kb8 {[%clk 0:00:31.6]} 24. Be5+ {[%clk 0:03:16.8]}
24... Ka8 {[%clk 0:00:29.3]} 25. Rd8+ {[%clk 0:03:15.5]} 25... Rc8 {[%clk
0:00:25.7]} 26. Rxc8# {[%clk 0:03:15.4]} 1-0

[Event "Live Chess"]
[Site "Chess.com"]
[Date "2023.05.21"]
[Round "-"]
[White "educatedlad"]
[Black "xx_blindpuffin_xx"]
[Result "0-1"]
[WhiteElo "1628"]
[BlackElo "2210"]
[TimeControl "300"]
[EndTime "17:01:54 PDT"]
[Termination "xx_blindpuffin_xx won by checkmate"]

1. e4 {[%clk 0:04:59.5]} 1... c6 {[%clk 0:04:58.4]} 2. d4 {[%clk 0:04:58.9]}
2... d5 {[%clk 0:04:58]} 3. e5 {[%clk 0:04:58.6]} 3... Bf5 {[%clk 0:04:56.7]} 4.
h4 {[%clk 0:04:57.8]} 4... Bd7 {[%clk 0:04:55.8]} 5. Be3 {[%clk 0:04:53.1]} 5...
e6 {[%clk 0:04:55]} 6. Nd2 {[%clk 0:04:52.4]} 6... c5 {[%clk 0:04:54.1]} 7. Ngf3
{[%clk 0:04:48.4]} 7... Nc6 {[%clk 0:04:52.7]} 8. dxc5 {[%clk 0:04:45.4]} 8...
Nge7 {[%clk 0:04:26.3]} 9. Nb3 {[%clk 0:04:43.8]} 9... Nf5 {[%clk 0:04:21.4]}
10. Bb5 {[%clk 0:04:34.9]} 10... Nxe3 {[%clk 0:04:19.4]} 11. fxe3 {[%clk
0:04:34.2]} 11... a5 {[%clk 0:04:10.9]} 12. a4 {[%clk 0:04:32.1]} 12... Rc8
{[%clk 0:04:08.2]} 13. O-O {[%clk 0:04:27.5]} 13... Qc7 {[%clk 0:04:06.6]} 14.
Rc1 {[%clk 0:04:16.7]} 14... Nxe5 {[%clk 0:03:46.2]} 15. Nxe5 {[%clk 0:04:11.5]}
15... Qxe5 {[%clk 0:03:44.6]} 16. Bxd7+ {[%clk 0:04:07.4]} 16... Kxd7 {[%clk
0:03:44.5]} 17. Nxa5 {[%clk 0:04:05.7]} 17... Qxe3+ {[%clk 0:03:35]} 18. Kh1
{[%clk 0:04:04.1]} 18... f5 {[%clk 0:03:21.7]} 19. Nxb7 {[%clk 0:04:02.1]} 19...
Rc7 {[%clk 0:03:15.7]} 20. Na5 {[%clk 0:03:34.8]} 20... Bxc5 {[%clk 0:02:58.8]}
21. Rxf5 {[%clk 0:03:30.1]} 21... exf5 {[%clk 0:02:52.7]} 22. Qxd5+ {[%clk
0:03:28.8]} 22... Ke7 {[%clk 0:02:37.8]} 23. Nc6+ {[%clk 0:03:24.2]} 23... Rxc6
{[%clk 0:02:36.2]} 24. Qxc6 {[%clk 0:03:22]} 24... Qxc1+ {[%clk 0:02:34.3]} 25.
Kh2 {[%clk 0:03:20.4]} 25... Qf4+ {[%clk 0:02:33.3]} 26. Kh1 {[%clk 0:03:19]}
26... Qxh4# {[%clk 0:02:32.1]} 0-1

[Event "Live Chess"]
[Site "Chess.com"]
[Date "2023.05.21"]
[Round "-"]
[White "LiamClery2020"]
[Black "Long1968"]
[Result "1-0"]
[WhiteElo "2043"]
[BlackElo "1130"]
[TimeControl "300"]
[EndTime "17:01:57 PDT"]
[Termination "LiamClery2020 won on time"]

1. e4 {[%clk 0:04:59]} 1... e6 {[%clk 0:04:56.8]} 2. d4 {[%clk 0:04:56.5]} 2...
d5 {[%clk 0:04:54.7]} 3. Nd2 {[%clk 0:04:56]} 3... Nf6 {[%clk 0:04:45.6]} 4. e5
{[%clk 0:04:54.8]} 4... Nfd7 {[%clk 0:04:43.1]} 5. Ngf3 {[%clk 0:04:54.7]} 5...
c5 {[%clk 0:04:34.9]} 6. c3 {[%clk 0:04:53.6]} 6... Qb6 {[%clk 0:04:31.4]} 7.
Bd3 {[%clk 0:04:50.7]} 7... Nc6 {[%clk 0:04:24.7]} 8. O-O {[%clk 0:04:48.8]}
8... cxd4 {[%clk 0:04:14.4]} 9. cxd4 {[%clk 0:04:48.7]} 9... Nxd4 {[%clk
0:04:11.2]} 10. Nxd4 {[%clk 0:04:48.6]} 10... Qxd4 {[%clk 0:04:09]} 11. Nf3
{[%clk 0:04:48.5]} 11... Qb6 {[%clk 0:04:02.7]} 12. Qc2 {[%clk 0:04:46.9]} 12...
Be7 {[%clk 0:03:49.6]} 13. Bxh7 {[%clk 0:04:45.1]} 13... Qc6 {[%clk 0:03:06.9]}
14. Qxc6 {[%clk 0:04:40.5]} 14... bxc6 {[%clk 0:03:02.6]} 15. Bd3 {[%clk
0:04:40.4]} 15... a5 {[%clk 0:02:50.1]} 16. Be3 {[%clk 0:04:39.1]} 16... Ba6
{[%clk 0:02:44.9]} 17. Bxa6 {[%clk 0:04:36.5]} 17... Rxa6 {[%clk 0:02:42.2]} 18.
Rac1 {[%clk 0:04:36.4]} 18... O-O {[%clk 0:02:23.5]} 19. Rfd1 {[%clk 0:04:30.7]}
19... Rb8 {[%clk 0:02:10]} 20. b3 {[%clk 0:04:24.4]} 20... f6 {[%clk 0:02:00.1]}
21. exf6 {[%clk 0:04:17.4]} 21... Nxf6 {[%clk 0:01:56.1]} 22. Nd4 {[%clk
0:04:16.3]} 22... c5 {[%clk 0:01:25.5]} 23. Nf3 {[%clk 0:04:07]} 23... d4 {[%clk
0:01:21.3]} 24. Bf4 {[%clk 0:04:04.3]} 24... Bd6 {[%clk 0:01:16]} 25. Bxd6
{[%clk 0:04:00.4]} 25... Rxd6 {[%clk 0:01:13.5]} 26. Rxc5 {[%clk 0:03:59.9]}
26... d3 {[%clk 0:01:08.4]} 27. Ne1 {[%clk 0:03:52.1]} 27... Rbd8 {[%clk
0:01:04.5]} 28. Rc3 {[%clk 0:03:48.2]} 28... Nd5 {[%clk 0:00:56.5]} 29. Rcxd3
{[%clk 0:03:46.5]} 29... Kf7 {[%clk 0:00:47.2]} 30. Nc2 {[%clk 0:03:45]} 30...
Ke7 {[%clk 0:00:43.4]} 31. Ne3 {[%clk 0:03:38.8]} 31... Nxe3 {[%clk 0:00:33.1]}
32. Rxd6 {[%clk 0:03:34.2]} 32... Nxd1 {[%clk 0:00:27.7]} 33. Rxd8 {[%clk
0:03:33]} 33... Kxd8 {[%clk 0:00:25.1]} 34. f3 {[%clk 0:03:32.9]} 34... Nc3
{[%clk 0:00:21]} 35. a3 {[%clk 0:03:32.1]} 35... Nb1 {[%clk 0:00:18.3]} 36. a4
{[%clk 0:03:31.1]} 36... Nd2 {[%clk 0:00:15.9]} 37. Kf2 {[%clk 0:03:30.1]} 37...
Nxb3 {[%clk 0:00:14.1]} 38. Ke3 {[%clk 0:03:30]} 38... Nc5 {[%clk 0:00:12.5]}
39. Kd4 {[%clk 0:03:29.9]} 39... Nxa4 {[%clk 0:00:11.2]} 40. Kc4 {[%clk
0:03:29.8]} 40... Nb6+ {[%clk 0:00:09.6]} 41. Kb3 {[%clk 0:03:29]} 41... Ke7
{[%clk 0:00:07.1]} 42. h4 {[%clk 0:03:28.9]} 42... Kf6 {[%clk 0:00:05.6]} 43. g4
{[%clk 0:03:28.8]} 43... Ke5 {[%clk 0:00:03.2]} 44. Ka3 {[%clk 0:03:28.7]} 44...
Kf4 {[%clk 0:00:01.7]} 45. h5 {[%clk 0:03:28.6]} 1-0